bitfinex-derivatives/quotes_ETHF0:USTF0_20241230
["timestamp","ask_amount","ask_price","bid_price","bid_amount"]
[1735578688073,0.29983,3341.4,3341.3,0.29983]
[1735578688277,0.29981,3341.6,3341.5,0.29981]
[1735578688674,3.2078,3341.7,3341.0,1.274]
[1735578688982,0.29982,3341.5,3341.4,0.29982]
[1735578689167,3.2078,3341.7,3341.1,40.8]
[1735578689476,0.29981,3341.6,3341.5,0.29981]
[1735578690282,0.29981,3341.6,3341.1,42.074]
[1735578690283,3.2078,3341.7,3341.6,0.29981]
[1735578691575,0.29981,3341.6,3341.5,0.29981]
[1735578691780,0.29983,3341.5,3341.4,0.29982]
[1735578692081,3.2078,3341.7,3341.2,0.29984]
[1735578692082,0.29984,3341.3,3341.2,0.29984]
[1735578692982,3.2078,3341.7,3340.9,1.274]
[1735578693179,3.5076,3341.7,3341.6,0.29981]
[1735578693381,3.2078,3341.7,3341.6,0.29981]
[1735578693879,3.5076,3341.7,3341.6,0.29981]
[1735578694080,3.2078,3341.7,3341.3,0.4297]
[1735578694281,0.29982,3341.5,3341.4,0.29982]
[1735578694681,3.5076,3341.7,3341.6,0.29981]
[1735578695275,0.29982,3341.6,3341.5,0.29981]
[1735578695879,0.29983,3341.4,3341.3,0.29982]
[1735578696080,0.29982,3341.5,3341.4,0.29982]
[1735578700893,0.29986,3341.2,3341.1,0.29984]
[1735578701088,0.29986,3341.1,3341.0,0.29985]
[1735578701290,0.72806,3341.1,3341.0,0.29985]
[1735578701592,0.4282,3341.1,3341.0,0.29985]
[1735578701789,0.72805,3341.1,3341.0,0.29985]
[1735578702091,1.17005,3341.1,3341.0,0.29985]
[1735578703188,0.8702,3341.1,3340.8,3.2078]
[1735578703492,0.29989,3340.8,3340.7,0.29988]
[1735578703888,0.29989,3340.8,3340.4,2.44368]
[1735578703889,4.078,3341.1,3340.4,1.16968]
[1735578704092,4.078,3341.1,3341.0,0.29986]
[1735578704290,0.8702,3341.1,3341.0,0.29986]
[1735578704488,0.4418,3341.4,3341.3,0.29983]
[1735578704489,0.74163,3341.4,3341.3,0.29983]
[1735578704689,1.17253,3341.4,3341.3,0.29983]
[1735578705194,1.17253,3341.4,3341.3,41.09983]
[1735578705694,1.17253,3341.4,3341.3,0.29983]
[1735578706194,0.29986,3341.1,3341.0,0.29985]
[1735578708295,1.62228,3341.4,3340.6,1.274]
[1735578708489,0.8727,3341.4,3340.6,1.274]
[1735578708687,0.29985,3341.2,3341.1,0.29984]
[1735578709089,0.29987,3341.1,3341.0,0.29986]
[1735578710689,0.8727,3341.4,3340.6,1.274]
[1735578710892,0.29987,3341.0,3340.9,0.29986]
[1735578713789,0.29989,3340.8,3340.7,0.29988]
[1735578713995,0.29991,3340.6,3340.5,0.2999]
[1735578714194,0.4245,3340.7,3340.6,0.2999]
[1735578714591,0.72439,3340.7,3340.6,0.2999]
[1735578714795,0.4578,3340.9,3340.5,0.74976]
[1735578714998,0.75767,3340.9,3340.8,0.29988]
[1735578716902,0.4578,3340.9,3340.8,0.29988]
[1735578717201,0.75767,3340.9,3340.8,0.29988]
[1735578717702,0.4578,3340.9,3340.8,0.29988]
[1735578718701,0.72436,3341.1,3341.0,0.29986]
[1735578720704,0.4452,3341.3,3341.2,0.29984]
[1735578723004,0.74503,3341.3,3341.2,0.29984]
[1735578723204,0.4452,3341.3,3341.2,0.29984]
[1735578724303,3.03611209,3341.8,3341.0,0.74964]
[1735578724304,2.28662209,3341.8,3341.0,0.74964]
[1735578724506,0.8734,3341.8,3341.7,0.2998]
[1735578724707,0.4335,3341.8,3341.7,0.2998]
[1735578725004,0.73329,3341.8,3341.7,0.2998]
[1735578725405,0.4399,3342.0,3341.6,3.2078]
[1735578725595,7.89625939,3342.3,3341.8,0.74948]
[1735578725799,8.19600939,3342.3,3342.2,0.29975]
[1735578726401,3.50755,3342.3,3342.2,0.29975]
[1735578727303,0.29977,3342.1,3342.0,0.29976]
[1735578730899,3.2078,3342.3,3341.7,1.274]
[1735578731099,3.2078,3342.3,3341.6,3.2078]
[1735578731100,2.28662209,3342.1,3341.6,3.2078]
[1735578731305,0.29977,3342.1,3342.0,0.29976]
[1735578733612,2.28662209,3342.1,3341.4,4.66976366]
[1735578733906,0.29982,3341.6,3341.5,0.2998]
[1735578734308,1.65472,3341.6,3341.5,0.2998]
[1735578735212,1.3549,3341.6,3341.5,0.2998]
[1735578735808,1.65471,3341.6,3341.5,0.2998]
[1735578736008,1.3549,3341.6,3341.5,0.2998]
[1735578736906,1.65471,3341.6,3341.5,0.2998]
[1735578737306,0.29979,3341.9,3341.8,0.29978]
[1735578737605,0.29981,3341.7,3341.6,0.2998]
[1735578739413,0.29981,3341.7,3341.4,0.29981]
[1735578739414,0.29983,3341.5,3341.4,0.29981]
[1735578740803,3.95732,3341.7,3340.9,4.66976366]
[1735578741009,0.29986,3341.1,3341.0,0.29985]
[1735578741515,0.29986,3341.1,3340.9,4.66976366]
[1735578741516,0.29986,3341.0,3340.9,4.96962366]
[1735578741702,1.15015,3341.1,3341.0,0.29986]
[1735578742008,4.68845939,3341.3,3341.2,0.29984]
[1735578743114,5.10705939,3341.8,3341.7,0.2998]
[1735578743412,4.68845939,3341.8,3341.7,0.2998]
[1735578743602,4.68845939,3341.8,3341.7,41.0998]
[1735578743806,4.68845939,3341.8,3341.7,41.9096]
[1735578744414,0.8503,3342.3,3342.2,0.29975]
[1735578745113,4.68845939,3342.5,3342.4,0.29973]
[1735578745311,5.14225939,3342.8,3342.7,0.29971]
[1735578745510,5.44195939,3342.8,3342.7,0.29971]
[1735578745810,5.14225939,3342.8,3342.7,0.29971]
[1735578747013,0.4538,3342.8,3342.7,0.29971]
[1735578748211,0.7535,3342.8,3342.7,0.29971]
[1735578748911,0.29973,3342.5,3342.4,3.2078]
[1735578749220,0.29974,3342.4,3342.3,0.29973]
[1735578749708,0.29973,3342.5,3342.0,1.273]
[1735578749913,5.49442209,3342.7,3342.0,1.273]
[1735578750104,0.29974,3342.4,3342.3,0.29974]
[1735578750518,5.49442209,3342.7,3342.0,1.273]
[1735578750815,0.29974,3342.4,3342.3,0.29974]
[1735578751014,0.29974,3342.4,3341.7,3.2078]
[1735578751015,2.28662209,3342.4,3341.7,3.2078]
[1735578751217,0.2998,3341.7,3341.6,4.66976366]
[1735578751407,0.2998,3341.7,3341.6,0.29981]
[1735578751718,0.4531,3341.7,3341.6,0.29981]
[1735578755611,0.4531,3341.7,3341.3,1.273]
[1735578755612,0.29977,3342.1,3341.5,0.74953]
[1735578755817,0.74847,3342.1,3342.0,0.29977]
[1735578756007,0.4487,3342.1,3342.0,0.29977]
[1735578756207,0.4487,3342.1,3342.0,41.09977]
[1735578756612,0.4487,3342.1,3342.0,0.29977]
[1735578759215,0.4349,3342.3,3342.2,0.29975]
[1735578762918,0.73464,3342.3,3342.2,0.29975]
[1735578763223,0.4349,3342.3,3342.2,0.29975]
[1735578764125,0.73464,3342.3,3342.2,0.29975]
[1735578765321,0.29979,3341.8,3341.7,4.96955366]
[1735578766026,0.29979,3341.8,3341.7,0.29979]
[1735578766820,0.2998,3341.7,3341.6,4.66976366]
[1735578767020,1.1811,3341.7,3341.6,4.66976366]
[1735578767219,3.46772209,3341.7,3341.6,3.29096366]
[1735578767525,3.46772209,3341.7,3341.6,1.73096366]
[1735578767729,0.29982,3341.4,3341.3,3.2078]
[1735578768028,0.29982,3341.4,3341.3,3.50763]
[1735578768419,0.8813,3341.7,3341.3,3.2078]
[1735578768626,0.8813,3341.7,3341.6,0.29981]
[1735578768921,1.1811,3341.7,3341.6,0.29981]
[1735578769625,0.434,3341.7,3341.6,0.29981]
[1735578770724,0.7338,3341.7,3341.6,0.29981]
[1735578771231,0.434,3341.7,3341.6,0.29981]
[1735578771618,0.7338,3341.7,3341.6,0.29981]
[1735578772026,0.434,3341.7,3341.6,0.29981]
[1735578772527,0.7338,3341.7,3341.6,0.29981]
[1735578773517,0.434,3341.7,3341.6,0.29981]
[1735578773924,4.40338869,3342.0,3341.9,0.29978]
[1735578774228,3.98168869,3342.0,3341.9,0.29978]
[1735578774430,3.52928869,3342.0,3341.9,0.29978]
[1735578775233,3.52928869,3342.3,3342.2,0.29975]
[1735578775424,3.82902869,3342.3,3342.2,0.29975]
[1735578775725,3.52928869,3342.3,3342.2,0.29975]
[1735578776029,0.29974,3342.4,3342.3,0.29974]
[1735578778426,0.8456,3342.5,3341.8,0.8334]
[1735578778632,0.8456,3342.5,3341.7,3.2078]
[1735578778839,3.2078,3342.2,3341.5,7.78346755]
[1735578779132,0.72307,3342.1,3342.0,0.29976]
[1735578779834,4.67401661,3342.5,3342.4,0.29973]
[1735578781822,4.37428661,3342.5,3342.4,0.29973]
[1735578782032,0.8456,3342.5,3342.4,0.29973]
[1735578782234,1.14533,3342.5,3342.4,0.29973]
[1735578783230,0.4245,3342.5,3342.4,0.29973]
[1735578783435,3.52868661,3342.8,3342.7,0.29971]
[1735578784534,1.14219,3342.9,3342.8,0.2997]
[1735578785629,3.42881209,3342.9,3342.8,0.2997]
[1735578785934,0.4143,3342.9,3342.8,0.2997]
[1735578789434,0.71399,3342.9,3342.8,0.2997]
[1735578789639,0.29972,3342.7,3342.6,0.29971]
[1735578789839,0.29971,3342.8,3342.7,0.2997]
[1735578790639,0.29974,3342.5,3342.4,0.29973]
[1735578791136,0.29977,3342.1,3342.0,0.29976]
[1735578791331,0.29977,3342.0,3341.9,7.03392755]
[1735578791535,0.74257,3342.0,3341.9,7.03392755]
[1735578791741,0.2998,3341.8,3341.7,0.29979]
[1735578792432,0.29981,3341.7,3341.6,0.2998]
[1735578792636,0.75181,3341.7,3341.6,0.2998]
[1735578792940,0.4428,3342.0,3341.9,0.29978]
[1735578793241,0.74257,3342.0,3341.9,0.29978]
[1735578793430,0.4428,3342.0,3341.4,0.74955]
[1735578793633,0.4428,3342.0,3341.4,1.272]
[1735578793828,0.29981,3341.7,3341.6,0.2998]
[1735578794134,0.2998,3341.8,3341.7,0.29979]
[1735578794337,0.75178,3341.9,3341.8,0.29979]
[1735578795036,0.4428,3342.0,3341.5,0.74955]
[1735578795339,0.4428,3342.0,3341.9,0.29978]
[1735578795838,0.4428,3342.0,3341.4,1.272]
[1735578796141,2.72942209,3342.0,3341.4,1.272]
[1735578796340,0.29982,3341.6,3341.5,0.29981]
[1735578796840,0.4428,3342.0,3341.4,1.272]
[1735578797040,0.29978,3341.9,3341.8,0.29978]
[1735578798340,0.4428,3342.0,3341.5,40.8]
[1735578798538,0.29981,3341.7,3341.6,0.2998]
[1735578798834,0.29981,3341.7,3341.4,1.272]
[1735578798835,0.2998,3341.8,3341.7,0.29979]
[1735578799945,6.2581087,3342.0,3341.4,1.272]
[1735578800142,0.74901,3341.7,3341.6,0.2998]
[1735578801243,0.29982,3341.6,3341.5,0.29981]
[1735578801443,0.73632,3341.6,3341.5,0.29981]
[1735578803144,0.4365,3341.6,3341.2,3.2078]
[1735578803340,0.29982,3341.5,3341.4,0.29982]
[1735578803547,0.4365,3341.6,3341.2,3.2078]
[1735578803843,0.29983,3341.3,3341.2,3.50764]
[1735578804144,0.29983,3341.3,3341.2,3.2078]
[1735578804946,0.75773,3341.3,3341.2,3.2078]
[1735578805743,0.4579,3341.3,3340.6,3.2078]
[1735578805940,0.29989,3340.7,3340.6,0.29989]
[1735578806140,0.2999,3340.6,3340.5,7.33382755]
[1735578806335,1.6156,3340.6,3340.5,7.33382755]
[1735578806541,1.6156,3340.6,3340.5,7.03392755]
[1735578806742,1.6156,3340.6,3340.5,7.33383755]
[1735578807048,3.2078,3341.2,3340.5,7.03392755]
[1735578807249,0.29986,3341.1,3341.0,0.29985]
[1735578808148,3.6621,3341.2,3340.9,0.29987]
[1735578808149,0.29987,3341.0,3340.9,0.29987]
[1735578808350,0.74037,3341.0,3340.9,0.29987]
[1735578808745,0.29988,3340.9,3340.8,0.29987]
[1735578809047,0.4405,3341.0,3340.5,7.47742755]
[1735578809241,0.4405,3341.0,3340.6,0.2999]
[1735578809242,0.2999,3340.7,3340.6,0.2999]
[1735578809450,0.4405,3341.0,3340.5,7.03392755]
[1735578809747,3.9268,3340.6,3340.5,7.33383755]
[1735578809945,3.9268,3340.6,3340.5,7.03392755]
[1735578811046,3.9268,3340.6,3340.5,7.33383755]
[1735578812441,3.2078,3340.6,3340.5,7.33383755]
[1735578813352,3.5077,3340.6,3340.5,7.33383755]
[1735578816445,3.5077,3340.6,3340.5,7.03392755]
[1735578817042,0.29993,3340.2,3340.1,1.272]
[1735578817340,0.29993,3340.2,3340.1,0.29994]
[1735578817541,0.29996,3340.0,3339.9,0.29996]
[1735578817745,0.29992,3340.3,3340.2,0.29993]
[1735578817943,0.29994,3340.2,3340.1,0.29993]
[1735578820447,0.29995,3340.1,3340.0,0.29994]
[1735578821949,0.29999,3339.7,3339.6,0.29997]
[1735578822148,0.4301,3340.0,3339.5,0.4472]
[1735578822347,0.29999,3339.7,3339.6,0.29998]
[1735578823151,0.4164,3339.8,3339.7,0.29998]
[1735578823352,0.71637,3339.8,3339.7,0.29998]
[1735578826562,0.4164,3339.8,3339.4,3.2078]
[1735578826752,0.3,3339.6,3339.5,0.29999]
[1735578827054,0.3,3339.6,3338.9,3.50784]
[1735578827055,0.30004,3339.0,3338.9,3.50784]
[1735578827256,0.74999,3339.6,3338.9,3.2078]
[1735578827257,2.28662209,3339.6,3338.9,3.2078]
[1735578827460,3.2078,3339.7,3339.0,0.75009]
[1735578827761,3.50778,3339.7,3339.6,0.29999]
[1735578828262,3.2078,3339.7,3339.6,0.29999]
[1735578830954,3.50778,3339.7,3339.6,0.29999]
[1735578831359,3.2078,3339.7,3339.6,0.29999]
[1735578831748,3.2078,3339.7,3339.1,0.8516]
[1735578831948,0.30001,3339.4,3339.3,0.30001]
[1735578832147,0.30004,3339.1,3339.0,0.30003]
[1735578832957,1.18993,3339.2,3339.1,0.30003]
[1735578833264,0.8899,3339.2,3339.1,0.30003]
[1735578833652,2.28662209,3339.9,3339.1,0.30003]
[1735578833857,0.29997,3339.8,3339.6,0.29999]
[1735578834052,1.3283,3340.1,3339.5,0.29999]
[1735578834053,0.29999,3339.6,3339.5,0.29999]
[1735578834662,2.28662209,3339.9,3339.2,0.4291]
[1735578834963,0.29998,3339.7,3339.6,0.29998]
[1735578835364,0.3,3339.6,3339.5,0.29999]
[1735578835661,0.3,3339.5,3339.4,0.3]
[1735578835862,0.3,3339.5,3339.3,0.4517]
[1735578835863,0.4441,3339.5,3339.3,0.4517]
[1735578836055,0.3,3339.4,3339.3,0.75171]
[1735578836555,0.4441,3339.5,3339.3,0.4517]
[1735578836753,0.4441,3339.5,3339.4,0.3]
[1735578836956,0.7441,3339.5,3339.4,0.3]
[1735578837160,0.4441,3339.5,3339.4,0.3]
[1735578838362,0.7441,3339.5,3339.4,0.3]
[1735578838767,0.3,3339.4,3339.3,0.75171]
[1735578839668,0.4441,3339.5,3338.9,3.2078]
[1735578839871,0.4441,3339.5,3339.1,0.30002]
[1735578839872,0.30003,3339.2,3339.1,0.30002]
[1735578840368,0.73082,3339.3,3339.2,0.30002]
[1735578840557,0.4308,3339.3,3339.2,0.30002]
[1735578841067,3.2078,3339.7,3339.0,0.7501]
[1735578841268,3.50778,3339.7,3339.6,0.29999]
[1735578841972,3.2078,3339.7,3339.6,0.29999]
[1735578844265,3.50778,3339.7,3339.6,0.29999]
[1735578844966,3.2078,3339.7,3339.6,0.29999]
[1735578845367,3.50778,3339.7,3339.6,0.29999]
[1735578846169,0.29998,3339.7,3339.6,0.29999]
[1735578846565,0.3,3339.6,3339.5,0.29999]
[1735578847473,0.29998,3339.8,3339.7,0.29997]
[1735578851178,0.3,3339.5,3339.4,0.3]
[1735578851477,3.95777,3339.7,3339.2,0.30002]
[1735578851668,0.30001,3339.3,3339.2,0.30002]
[1735578852069,0.74171,3339.3,3339.2,0.30002]
[1735578853378,1.16871,3339.4,3338.9,3.95791]
[1735578853571,0.75339,3339.6,3339.1,0.75008]
[1735578853774,0.4534,3339.6,3339.5,0.3]
[1735578854077,0.4534,3339.6,3339.3,0.75004]
[1735578854078,3.2078,3339.7,3339.6,0.29999]
[1735578855573,3.50778,3339.7,3339.6,0.29999]
[1735578856276,3.2078,3339.7,3339.6,0.29999]
[1735578858169,3.98208661,3340.1,3339.6,1.57099]
[1735578858373,3.98208661,3340.1,3340.0,0.29995]
[1735578858374,3.52868661,3340.1,3340.0,0.29995]
[1735578858780,3.52868661,3340.1,3340.0,42.38525]
[1735578859081,3.52868661,3340.1,3340.0,1.58525]
[1735578859481,3.52868661,3340.1,3340.0,42.38525]
[1735578860282,0.29991,3340.5,3340.4,0.29991]
[1735578862783,0.29991,3340.5,3340.0,1.2853]
[1735578863085,0.29993,3340.3,3340.2,0.29992]
[1735578864487,3.52868661,3340.5,3340.4,0.29991]
[1735578865489,0.2999,3340.6,3340.5,0.29991]
[1735578866582,3.95148661,3340.7,3340.4,0.29991]
[1735578866583,0.29992,3340.5,3340.4,0.29991]
[1735578867185,3.52868661,3340.6,3340.0,0.4302]
[1735578867384,0.29993,3340.3,3340.2,0.29992]
[1735578867587,0.29994,3340.2,3340.1,0.29993]
[1735578867789,0.72024,3340.2,3340.1,0.29993]
[1735578868183,0.29995,3340.1,3340.0,0.29994]
[1735578868382,1.15265,3340.1,3340.0,0.29994]
[1735578868579,4.0605,3340.1,3339.7,7.03392755]
[1735578868782,0.29997,3339.8,3339.7,7.03392755]
[1735578869188,5.29997,3339.8,3339.7,7.03392755]
[1735578869584,0.30003,3339.1,3339.0,10.24172755]
[1735578870594,0.30003,3339.1,3339.0,3.2078]
[1735578870989,0.30003,3339.1,3339.0,3.50784]
[1735578871594,3.52868661,3339.3,3339.2,0.30002]
[1735578872186,0.30002,3339.2,3339.1,0.4146]
[1735578872393,0.30003,3339.1,3339.0,3.50784]
[1735578872587,0.74473,3339.1,3339.0,3.50784]
[1735578875292,0.74473,3339.1,3339.0,3.2078]
[1735578875594,0.74473,3339.1,3339.0,3.50784]
[1735578875796,0.74473,3339.1,3339.0,3.2078]
[1735578875986,0.74473,3339.1,3339.0,3.50784]
[1735578876192,0.74473,3339.1,3339.0,0.30004]
[1735578876394,0.30005,3339.0,3338.9,0.30005]
[1735578876589,0.73625,3339.0,3338.9,0.30005]
[1735578878089,0.4362,3339.0,3338.9,0.30005]
[1735578878294,0.73624,3339.0,3338.9,0.30005]
[1735578878488,0.4362,3339.0,3338.9,0.30005]
[1735578879296,0.73624,3339.0,3338.9,0.30005]
[1735578880495,0.30007,3338.8,3338.3,11.9718]
[1735578880700,0.30007,3338.8,3338.7,0.30006]
[1735578881308,2.28662209,3338.9,3338.8,0.30006]
[1735578881495,0.4362,3339.0,3338.4,0.75024]
[1735578881794,0.4362,3339.0,3338.9,0.30005]
[1735578881795,0.73624,3339.0,3338.9,0.30005]
[1735578882501,0.4362,3339.0,3338.9,0.30005]
[1735578884499,3.6532,3339.4,3338.7,3.2078]
[1735578884803,4.78351,3339.4,3339.3,0.30001]
[1735578885406,3.52868661,3339.7,3339.3,0.30001]
[1735578885608,4.24526661,3339.7,3339.6,0.29999]
[1735578885997,0.30002,3339.4,3339.3,0.3]
[1735578887203,0.45,3339.4,3338.8,0.75014]
[1735578887404,0.30004,3339.2,3339.1,0.30002]
[1735578887794,0.30004,3339.2,3338.7,3.2078]
[1735578887998,0.30007,3338.9,3338.8,0.30005]
[1735578888204,0.30008,3338.6,3338.5,0.30007]
[1735578889811,0.45,3338.8,3338.3,4.4788]
[1735578890002,0.30008,3338.7,3338.6,0.30007]
[1735578891306,0.3001,3338.5,3338.4,0.30008]
[1735578891704,2.58671209,3338.6,3338.5,0.30008]
[1735578892208,0.3001,3338.5,3338.4,0.30009]
[1735578892402,2.28662209,3338.6,3338.2,0.4195]
[1735578892602,0.8546,3338.5,3338.4,0.30009]
[1735578893309,1.15468,3338.5,3338.4,0.30009]
[1735578894211,0.8546,3338.5,3338.2,0.4195]
[1735578894506,0.3001,3338.4,3338.3,0.30009]
[1735578895908,1.15469,3338.5,3338.4,0.30009]
[1735578897007,0.30011,3338.3,3338.2,0.3001]
[1735578897902,0.8546,3338.5,3338.2,0.3001]
[1735578898109,1.15469,3338.5,3338.4,0.30009]
[1735578899808,0.8546,3338.5,3338.4,0.30009]
[1735578900007,0.75006,3338.8,3338.3,3.2078]
[1735578900216,0.45,3338.8,3338.7,0.30007]
[1735578900803,3.6318,3339.0,3338.5,1.189]
[1735578901004,3.6318,3339.0,3338.9,0.30005]
[1735578901403,0.424,3339.0,3338.9,0.30005]
[1735578902003,3.04595209,3339.2,3338.8,0.00210304]
[1735578902004,0.4593,3339.2,3338.8,0.00210304]
[1735578902210,3.2078,3339.4,3339.3,0.30001]
[1735578902414,3.82867661,3339.6,3339.5,0.3]
[1735578903109,0.29999,3339.6,3339.5,0.3]
[1735578903311,0.29999,3339.6,3338.8,0.00210304]
[1735578903312,0.74997,3339.6,3338.8,0.00210304]
[1735578903508,0.30005,3338.9,3338.8,0.00210304]
[1735578904017,0.30008,3338.6,3338.5,4.69603394]
[1735578904214,0.30008,3338.6,3338.0,11.72321259]
[1735578904215,5.49442209,3338.6,3338.0,4.69603394]
[1735578904418,2.58673209,3338.3,3338.2,0.3001]
[1735578904618,0.30012,3338.2,3338.1,0.30011]
[1735578904918,0.4216,3338.2,3338.1,0.30011]
[1735578905221,0.72171,3338.2,3338.1,0.30011]
[1735578905412,0.4216,3338.2,3338.1,0.30011]
[1735578905815,5.49442209,3338.6,3337.8,3.2078]
[1735578906009,5.49442209,3338.6,3338.3,0.30009]
[1735578906010,0.3001,3338.4,3338.3,0.30009]
[1735578907617,0.3001,3338.4,3338.3,0.3001]
[1735578908216,0.8562,3338.5,3337.8,3.2078]
[1735578908217,0.4177,3338.5,3337.8,3.2078]
[1735578908418,0.4177,3338.5,3337.7,2.28662209]
[1735578908419,0.4177,3338.5,3338.4,0.30009]
[1735578908723,3.94538661,3339.0,3338.4,0.75023]
[1735578908917,3.52868661,3339.0,3338.9,0.30005]
[1735578909420,3.52868661,3339.1,3339.0,0.30004]
[1735578909723,3.52868661,3339.1,3339.0,3.50784]
[1735578910116,3.52868661,3339.1,3339.0,44.30784]
[1735578910727,0.29999,3339.6,3339.5,0.3]
[1735578914722,3.95398661,3339.7,3339.1,0.4335]
[1735578914923,3.95398661,3339.7,3339.6,0.29999]
[1735578915328,3.52868661,3339.7,3339.6,0.29999]
[1735578916033,0.4421,3339.9,3339.8,0.29997]
[1735578916231,0.74206,3339.9,3339.8,0.29997]
[1735578919236,0.4421,3339.9,3339.4,3.6668]
[1735578919636,0.4421,3339.9,3339.8,0.29997]
[1735578920239,0.29997,3339.8,3339.7,0.29997]
[1735578920439,0.29997,3339.8,3339.5,0.29999]
[1735578920440,0.29999,3339.6,3339.5,0.29999]
[1735578921842,2.28662209,3339.8,3339.1,5.12953394]
[1735578922042,2.28662209,3339.8,3339.7,0.29998]
[1735578922440,0.29999,3339.7,3339.6,0.29998]
[1735578922643,2.58659209,3339.8,3339.7,0.29998]
[1735578924142,0.29999,3339.7,3339.6,0.29998]
[1735578924331,2.28662209,3339.8,3339.1,8.33733394]
[1735578924536,0.3,3339.6,3339.5,0.29999]
[1735578924736,2.28662209,3339.8,3339.2,0.75006]
[1735578924938,0.29998,3339.7,3339.6,0.29998]
[1735578925146,0.29998,3339.7,3339.2,0.75006]
[1735578925147,2.58659209,3339.8,3339.7,0.29998]
[1735578925345,2.58659209,3339.8,3339.2,0.75006]
[1735578925346,2.28662209,3339.8,3339.2,0.75006]
[1735578925540,0.29998,3339.7,3339.6,0.29998]
[1735578927145,2.58659209,3339.8,3339.7,0.29998]
[1735578931037,2.28662209,3339.8,3339.7,0.29998]
[1735578931345,2.28662209,3339.8,3339.4,0.75002]
[1735578931346,0.29996,3340.0,3339.9,0.29995]
[1735578935354,0.29996,3340.0,3339.6,0.29997]
[1735578935355,0.29999,3339.7,3339.6,0.29997]
[1735578935551,2.58661209,3339.7,3339.6,0.29997]
[1735578940157,2.28662209,3339.7,3339.6,0.29997]
[1735578942950,2.58660209,3339.7,3339.6,0.29997]
[1735578943357,2.28662209,3339.7,3339.6,0.29997]
[1735578943553,2.58660209,3339.7,3339.6,0.29997]
[1735578944357,3.01440209,3339.7,3339.6,0.29997]
[1735578945648,3.52868661,3339.8,3339.3,0.75003]
[1735578945847,3.82865661,3339.8,3339.7,0.29997]
[1735578946759,2.58659209,3339.8,3339.7,0.29997]
[1735578946958,0.3,3339.5,3339.4,0.29999]
[1735578947757,2.28662209,3339.5,3339.2,4.69603394]
[1735578947958,0.30001,3339.3,3339.2,4.99605394]
[1735578948164,0.30001,3339.3,3339.2,0.30002]
[1735578948660,0.30002,3339.2,3339.1,3.2078]
[1735578948854,2.58664209,3339.2,3339.1,3.2078]
[1735578949456,2.58664209,3339.2,3339.1,3.50783]
[1735578949656,2.58664209,3339.2,3339.1,3.2078]
[1735578949863,0.30004,3339.1,3339.0,0.30003]
[1735578950554,0.30006,3338.9,3338.8,0.30005]
[1735578950758,2.58668209,3338.9,3338.8,0.30005]
[1735578950958,0.30006,3338.8,3338.7,3.2078]
[1735578951256,0.30008,3338.5,3338.4,4.99612394]
[1735578951453,2.58670209,3338.5,3338.4,4.99612394]
[1735578952064,2.58670209,3338.5,3338.4,0.30009]
[1735578952362,0.30011,3338.4,3338.3,0.3001]
[1735578952763,2.58671209,3338.5,3338.4,0.30009]
[1735578953559,6.1153987,3338.5,3338.4,0.30009]
[1735578953757,3.52868661,3338.5,3338.4,0.30009]
[1735578954964,3.2078,3338.9,3338.5,0.30008]
[1735578954965,3.52868661,3338.6,3338.5,0.30008]
[1735578955157,3.52868661,3338.6,3338.5,4.77688]
[1735578955359,3.52868661,3338.6,3338.5,45.57688]
[1735578956270,0.30003,3339.2,3339.1,0.30003]
[1735578956466,7.46120661,3339.3,3339.2,0.30002]
[1735578957068,7.46119661,3339.3,3339.2,0.30002]
[1735578957468,7.46119661,3339.3,3338.6,0.8809]
[1735578957469,7.16118661,3339.3,3338.6,0.8809]
[1735578957663,0.30007,3338.7,3338.6,4.70725497]
[1735578958575,0.74637,3338.7,3338.6,4.70725497]
[1735578958968,0.30008,3338.6,3338.5,0.30008]
[1735578959167,2.58670209,3338.6,3338.5,0.30008]
[1735578959472,2.28662209,3338.6,3338.5,0.30008]
[1735578959675,10.19933757,3338.9,3338.8,0.30006]
[1735578960172,4.70491548,3339.0,3338.9,0.30005]
[1735578961567,3.2078,3339.3,3339.2,0.30002]
[1735578962772,3.2078,3339.3,3338.7,1.269]
[1735578962773,0.30003,3339.2,3339.1,0.30003]
[1735578962968,2.28662209,3339.2,3338.5,4.70725497]
[1735578963168,0.30008,3338.6,3338.5,4.70725497]
[1735578963768,2.08088,3338.7,3337.9,0.4483]
[1735578963968,2.28662209,3338.0,3337.9,0.30013]
[1735578964178,0.30012,3338.2,3337.8,5.97625497]
[1735578964381,0.30012,3338.2,3338.1,0.30012]
[1735578964779,0.30009,3338.5,3338.4,0.30009]
[1735578964974,3.83035632,3338.5,3338.4,0.30009]
[1735578965884,0.3001,3338.4,3338.3,0.3001]
[1735578966567,2.28662209,3338.6,3338.4,0.30009]
[1735578966773,2.58670209,3338.6,3338.5,0.30008]
[1735578967077,3.53026632,3338.7,3338.6,0.30008]
[1735578967376,3.53026632,3338.7,3338.2,1.50058]
[1735578967377,3.53026632,3338.8,3338.2,0.75029]
[1735578967681,3.53026632,3338.8,3338.7,0.30007]
[1735578968177,0.30009,3338.5,3338.4,0.30008]
[1735578968381,2.58671209,3338.5,3338.4,0.30008]
[1735578968977,2.28662209,3338.5,3338.4,0.30008]
[1735578970477,3.89450209,3338.5,3338.4,0.30008]
[1735578971273,0.30012,3338.1,3338.0,0.30013]
[1735578971579,0.30012,3338.1,3337.6,3.2078]
[1735578971580,0.30015,3337.9,3337.8,0.30014]
[1735578971969,2.28662209,3338.1,3337.6,0.4572]
[1735578972174,2.28662209,3338.1,3337.3,0.4589]
[1735578972175,2.58678209,3337.7,3337.3,0.4589]
[1735578972381,2.58678209,3337.7,3337.6,0.30017]